[Event "4NCL 2021-22"]
[Site "England"]
[Date "2022.02.13"]
[Round "4.36"]
[White "Rendle, Thomas E"]
[Black "Carroll, Peter"]
[Result "1-0"]
[ECO "B21"]
[WhiteElo "2365"]
[BlackElo "2122"]
[Annotator "NA"]
[PlyCount "63"]
[EventDate "2021.11.27"]
[EventType "team-tourn"]
[EventCountry "ENG"]
[SourceTitle "playchess.com"]
[Source "ChessBase"]
[SourceQuality "1"]
[TimeControl "40/6000+30:3000+30"]

1. e4 {[%emt 0:00:02]} c5 {[%emt 0:09:06]} 2. Be2 {[%emt 0:02:52]} Nc6 {[%emt 0:01:17]} 3. d3 {[%emt 0:00:14]} g6 {[%emt 0:05:56]} 4. f4 {[%emt 0:00:39]} Bg7 {[%emt 0:00:07]} 5. Nf3 {[%emt 0:00:16]} d5 {[%emt 0:00:52]} 6. O-O {[%emt 0:03:02]} dxe4 {[%emt 0:10:56]} 7. dxe4 {[%emt 0:01:54]} Bg4 {[%emt 0:00:09]} 8. c3 {[%emt 0:02:03]} Nf6 {[%emt 0:02:26]} 9. h3 {[%emt 0:05:43]} Bxf3 {[%emt 0:02:54]} 10. Bxf3 {[%emt 0:01:15]} Qxd1 {[%emt 0:00:10]} 11. Rxd1 {[%emt 0:00:06]} e5 {[%emt 0:00:25]} 12. Na3 {[%emt 0:04:15]} O-O {[%emt 0:11:10]} 13. Nc4 {[%emt 0:00:59]} Rfd8 {[%emt 0:07:11]} 14. Rxd8+ {[%emt 0:04:35]} Rxd8 {[%emt 0:00:58]} 15. fxe5 {[%emt 0:00:07]} Nd7 {[%emt 0:01:58]} 16. Bg5 {[%emt 0:02:28]} Rb8 {[%emt 0:01:44]} 17. e6 {[%emt 0:02:14]} fxe6 {[%emt 0:00:07]} 18. Bg4 {[%emt 0:00:25]} Nf8 {[%emt 0:00:40]} 19. a4 {[%emt 0:16:17]} b6 {[%emt 0:05:05]} 20. Rd1 {[%emt 0:03:21]} Re8 {[%emt 0:01:52]} 21. Nd6 {[%emt 0:06:08]} Rb8 {[%emt 0:01:43]} 22. Nb5 {[%emt 0:02:26]} Ne5 {[%emt 0:00:55]} 23. Be2 {[%emt 0:07:01]} Nfd7 {[%emt 0:05:17]} 24. Nxa7 {[%emt 0:05:19]} Ra8 {[%emt 0:01:53]} 25. Nc6 {[%emt 0:00:48]} Nf7 {[%emt 0:05:56]} 26. Be3 {[%emt 0:04:35]} Nf6 {[%emt 0:00:25]} 27. Bc4 {[%emt 0:02:38]} Nxe4 {[%emt 0:05:00]} 28. Bxe6 {[%emt 0:01:02]} Kf8 {[%emt 0:00:48]} 29. Rd7 {[%emt 0:03:14]} Neg5 {[%emt 0:01:28]} 30. Bd5 {[%emt 0:04:23]} Rxa4 {[%emt 0:01:23]} 31. Bxg5 {[%emt 0:02:38]} Nxg5 {[%emt 0:00:26]} 32. Rd8# {[%emt 0:00:47]} 1-0

[Event "4NCL 2021-22"]
[Site "England"]
[Date "2022.02.13"]
[Round "4.37"]
[White "Thorarinsson, Pall A."]
[Black "Batchelor, Peter J"]
[Result "0-1"]
[ECO "A17"]
[WhiteElo "2166"]
[BlackElo "2366"]
[Annotator "NA"]
[PlyCount "64"]
[EventDate "2021.11.27"]
[EventType "team-tourn"]
[EventCountry "ENG"]
[SourceTitle "playchess.com"]
[Source "ChessBase"]
[SourceQuality "1"]
[TimeControl "40/6000+30:3000+30"]

1. c4 {[%emt 0:05:10]} Nf6 {[%emt 0:00:06]} 2. Nf3 {[%emt 0:01:56]} e6 {[%emt 0:00:10]} 3. Nc3 {[%emt 0:01:15]} Bb4 {[%emt 0:01:15]} 4. Qb3 {[%emt 0:03:26]} Nc6 {[%emt 0:00:22]} 5. a3 {[%emt 0:04:06]} Bxc3 {[%emt 0:01:32]} 6. Qxc3 {[%emt 0:00:17]} d6 {[%emt 0:00:30]} 7. b4 {[%emt 0:01:19]} e5 {[%emt 0:01:08]} 8. d3 {[%emt 0:11:43]} Bg4 {[%emt 0:01:05]} 9. e3 {[%emt 0:03:18]} O-O {[%emt 0:05:17]} 10. Be2 {[%emt 0:01:03]} Re8 {[%emt 0:09:00]} 11. Bb2 {[%emt 0:02:16]} Qd7 {[%emt 0:03:30]} 12. h3 {[%emt 0:05:34]} Bxf3 {[%emt 0:01:42]} 13. Bxf3 {[%emt 0:03:34]} Nd4 {[%emt 0:06:39]} 14. Bxb7 {[%emt 0:02:13]} Rab8 {[%emt 0:00:14]} 15. Be4 {[%emt 0:03:18]} Nxe4 {[%emt 0:03:15]} 16. dxe4 {[%emt 0:00:20]} Ne6 {[%emt 0:00:03]} 17. f3 {[%emt 0:13:36]} Qa4 {[%emt 0:02:15]} 18. O-O {[%emt 0:06:40]} a5 {[%emt 0:00:27]} 19. c5 {[%emt 0:06:23]} f6 {[%emt 0:03:31]} 20. cxd6 {[%emt 0:09:01]} cxd6 {[%emt 0:00:01]} 21. Qd2 {[%emt 0:03:19]} axb4 {[%emt 0:01:34]} 22. axb4 {[%emt 0:02:18]} Qxb4 {[%emt 0:00:13]} 23. Bc3 {[%emt 0:09:27]} Qc5 {[%emt 0:03:30]} 24. Ra5 {[%emt 0:02:10]} Qc4 {[%emt 0:04:25]} 25. Rc1 {[%emt 0:06:08]} Rbc8 {[%emt 0:01:54]} 26. Bb2 {[%emt 0:01:50]} Qb3 {[%emt 0:00:30]} 27. Rxc8 {[%emt 0:00:56]} Rxc8 {[%emt 0:00:04]} 28. Qd5 {[%emt 0:00:53]} Qxe3+ {[%emt 0:02:21]} 29. Kh1 {[%emt 0:00:37]} Kf7 {[%emt 0:01:26]} 30. Rb5 {[%emt 0:00:42]} Rc7 {[%emt 0:05:36]} 31. Rb3 {[%emt 0:00:34]} Qf2 {[%emt 0:01:45]} 32. Rc3 {[%emt 0:00:35]} Qe1+ {[%emt 0:00:16]} 0-1

[Event "4NCL 2021-22"]
[Site "England"]
[Date "2022.02.13"]
[Round "4.39"]
[White "Freeman, Gordon"]
[Black "Foisor, Mihaela-Veronica"]
[Result "1/2-1/2"]
[ECO "D11"]
[WhiteElo "2092"]
[BlackElo "2208"]
[Annotator "NA"]
[PlyCount "36"]
[EventDate "2021.11.27"]
[EventType "team-tourn"]
[EventCountry "ENG"]
[SourceTitle "playchess.com"]
[Source "ChessBase"]
[SourceQuality "1"]
[TimeControl "40/6000+30:3000+30"]

1. d4 {[%emt 0:00:04]} d5 {[%emt 0:00:07]} 2. Nf3 {[%emt 0:00:06]} Nf6 {[%emt 0:00:34]} 3. c4 {[%emt 0:00:36]} c6 {[%emt 0:00:20]} 4. Qc2 {[%emt 0:02:47]} Bg4 {[%emt 0:00:49]} 5. Ne5 {[%emt 0:04:30]} e6 {[%emt 0:01:08]} 6. Nxg4 {[%emt 0:08:43]} Nxg4 {[%emt 0:00:03]} 7. h3 {[%emt 0:06:58]} Nf6 {[%emt 0:00:13]} 8. e3 {[%emt 0:02:18]} Nbd7 {[%emt 0:00:13]} 9. Nc3 {[%emt 0:00:54]} Bd6 {[%emt 0:00:13]} 10. Be2 {[%emt 0:09:49]} O-O {[%emt 0:00:11]} 11. O-O {[%emt 0:01:33]} Rc8 {[%emt 0:02:42]} 12. e4 {[%emt 0:10:09]} dxe4 {[%emt 0:00:12]} 13. Nxe4 {[%emt 0:00:43]} Nxe4 {[%emt 0:00:14]} 14. Qxe4 {[%emt 0:00:05]} Nf6 {[%emt 0:00:03]} 15. Qc2 {[%emt 0:05:55]} e5 {[%emt 0:03:48]} 16. dxe5 {[%emt 0:02:18]} Bxe5 {[%emt 0:00:05]} 17. Be3 {[%emt 0:02:02]} c5 {[%emt 0:02:06]} 18. Rad1 {[%emt 0:03:31]} Qb6 {[%emt 0:01:16]} 1/2-1/2

[Event "4NCL 2021-22"]
[Site "England"]
[Date "2022.02.13"]
[Round "4.40"]
[White "Murphy, Hugh W"]
[Black "Jackson, Carl"]
[Result "1/2-1/2"]
[ECO "C21"]
[WhiteElo "2107"]
[BlackElo "1979"]
[Annotator "NA"]
[PlyCount "30"]
[EventDate "2021.11.27"]
[EventType "team-tourn"]
[EventCountry "ENG"]
[SourceTitle "playchess.com"]
[Source "ChessBase"]
[SourceQuality "1"]
[TimeControl "40/6000+30:3000+30"]

1. e4 {[%emt 0:01:36]} e5 {[%emt 0:00:33]} 2. d4 {[%emt 0:00:14]} exd4 {[%emt 0:03:05]} 3. c3 {[%emt 0:00:21]} d5 {[%emt 0:07:47]} 4. exd5 {[%emt 0:00:37]} Qxd5 {[%emt 0:01:28]} 5. cxd4 {[%emt 0:00:30]} Nc6 {[%emt 0:06:56]} 6. Be3 {[%emt 0:00:18]} Nf6 {[%emt 0:06:50]} 7. Nc3 {[%emt 0:03:34]} Bb4 {[%emt 0:01:48]} 8. Nge2 {[%emt 0:01:31]} Bg4 {[%emt 0:18:35]} 9. h3 {[%emt 0:01:15]} Bh5 {[%emt 0:02:12]} 10. Qa4 {[%emt 0:13:12]} Ne4 {[%emt 0:13:58]} 11. a3 {[%emt 0:16:20]} Bxe2 {[%emt 0:07:16]} 12. axb4 {[%emt 0:01:14]} Nxc3 {[%emt 0:00:32]} 13. bxc3 {[%emt 0:00:14]} Bxf1 {[%emt 0:01:14]} 14. Kxf1 {[%emt 0:01:46]} O-O {[%emt 0:10:15]} 15. Qa2 {[%emt 0:05:16]} Ne7 {[%emt 0:08:20]} 1/2-1/2

[Event "4NCL 2021-22"]
[Site "England"]
[Date "2022.02.13"]
[Round "4.41"]
[White "Rocco, Federico"]
[Black "Derakhshani, Borna"]
[Result "0-1"]
[ECO "B12"]
[WhiteElo "2221"]
[BlackElo "2371"]
[Annotator "ChessBase"]
[PlyCount "68"]
[EventDate "2021.11.27"]
[EventType "team-tourn"]
[EventCountry "ENG"]
[SourceTitle "playchess.com"]
[Source "ChessBase"]
[SourceQuality "1"]
[TimeControl "40/6000+30:3000+30"]

1. e4 {[%emt 0:12:46]} c6 {[%emt 0:00:04]} 2. d4 {[%emt 0:00:29]} d5 {[%emt 0:00:05]} 3. e5 {[%emt 0:00:11]} Bf5 {[%emt 0:00:11]} 4. Nf3 {[%emt 0:00:23]} e6 {[%emt 0:00:13]} 5. Be2 {[%emt 0:00:17]} Ne7 {[%emt 0:00:12]} 6. Nh4 {[%emt 0:00:45]} h6 {[%emt 0:00:27]} 7. Nxf5 {[%emt 0:00:14]} Nxf5 {[%emt 0:00:14]} 8. O-O {[%emt 0:00:36]} c5 {[%emt 0:00:48]} 9. c3 {[%emt 0:03:31]} Nc6 {[%emt 0:01:05]} 10. g4 {[%emt 0:02:56]} Nh4 {[%emt 0:00:28]} 11. Be3 {[%emt 0:01:22]} Qb6 {[%emt 0:06:08]} 12. Nd2 {[%emt 0:09:44]} f6 {[%emt 0:13:19]} 13. f4 {[%emt 0:10:57]} h5 {[%emt 0:11:56]} 14. exf6 {[%emt 0:07:33]} gxf6 {[%emt 0:11:58]} 15. Bf2 {[%emt 0:02:30]} hxg4 {[%emt 0:00:15]} 16. Bxg4 {[%emt 0:00:21]} O-O-O {[%emt 0:09:55]} 17. Bxe6+ {[%emt 0:03:30]} Kb8 {[%emt 0:00:05]} 18. Qe1 {[%emt 0:08:52]} cxd4 {[%emt 0:06:01]} 19. Kh1 {[%emt 0:01:29]} Ng6 {[%emt 0:03:43]} 20. Bf7 {[%emt 0:05:53]} Nge7 {[%emt 0:08:31]} 21. Nb3 {[%emt 0:01:12]} Nf5 {[%emt 0:03:22]} 22. Qe6 {[%emt 0:22:13]} Ne3 {[%emt 0:08:18]} 23. Bxe3 {[%emt 0:02:18]} dxe3 {[%emt 0:00:40]} 24. Rae1 {[%emt 0:00:43]} Qc7 {[%emt 0:03:43]} 25. Qxf6 {[%emt 0:01:53]} Be7 {[%emt 0:02:42]} 26. Qe6 {[%emt 0:00:49]} Bh4 {[%emt 0:01:30]} 27. Rxe3 {[%emt 0:01:57]} Rd6 {[%emt 0:00:39]} 28. Qf5 {[%emt 0:02:13]} Rf6 {[%emt 0:00:09]} 29. Qxd5 {[%emt 0:00:10]} Qxf7 {[%emt 0:00:13]} 30. Qe4 {[%emt 0:02:53]} Rfh6 {[%emt 0:01:13]} 31. f5 {[%emt 0:00:35]} Bd8 {[%emt 0:00:12]} 32. Re2 {[%emt 0:00:27]} Bc7 {[%emt 0:00:52]} 33. Rff2 {[%emt 0:00:05]} Qh7 {[%emt 0:01:16]} 34. Nc5 {[%emt 0:02:04]} Bxh2 {[%emt 0:02:16]} 0-1

[Event "4NCL 2021-22"]
[Site "England"]
[Date "2022.02.13"]
[Round "4.42"]
[White "Willow, Jonah B"]
[Black "Villiers, Thomas"]
[Result "1-0"]
[ECO "B81"]
[WhiteElo "2365"]
[BlackElo "2277"]
[Annotator "ChessBase"]
[PlyCount "50"]
[EventDate "2021.11.27"]
[EventType "team-tourn"]
[EventCountry "ENG"]
[SourceTitle "playchess.com"]
[Source "ChessBase"]
[SourceQuality "1"]
[TimeControl "40/6000+30:3000+30"]

1. e4 {[%emt 0:00:14]} c5 {[%emt 0:00:10]} 2. Nf3 {[%emt 0:00:43]} d6 {[%emt 0:00:14]} 3. d4 {[%emt 0:01:15]} cxd4 {[%emt 0:00:09]} 4. Nxd4 {[%emt 0:01:19]} Nf6 {[%emt 0:00:13]} 5. Nc3 {[%emt 0:00:38]} a6 {[%emt 0:00:12]} 6. h3 {[%emt 0:00:19]} b5 {[%emt 0:02:09]} 7. g4 {[%emt 0:03:55]} Bb7 {[%emt 0:00:19]} 8. Bg2 {[%emt 0:04:31]} e6 {[%emt 0:01:48]} 9. g5 {[%emt 0:10:10]} Nfd7 {[%emt 0:01:08]} 10. a3 {[%emt 0:03:56]} Be7 {[%emt 0:03:19]} 11. h4 {[%emt 0:00:49]} Qc7 {[%emt 0:00:27]} 12. h5 {[%emt 0:06:19]} Nc6 {[%emt 0:03:03]} 13. Nxc6 {[%emt 0:04:34]} Bxc6 {[%emt 0:02:22]} 14. Qe2 {[%emt 0:15:08]} O-O {[%emt 0:07:30]} 15. O-O {[%emt 0:07:48]} Rac8 {[%emt 0:11:48]} 16. f4 {[%emt 0:02:27]} d5 {[%emt 0:00:34]} 17. exd5 {[%emt 0:01:40]} Bc5+ {[%emt 0:00:09]} 18. Kh2 {[%emt 0:01:29]} exd5 {[%emt 0:00:16]} 19. Bxd5 {[%emt 0:02:28]} Rfe8 {[%emt 0:05:25]} 20. Qf3 {[%emt 0:01:36]} Nb6 {[%emt 0:05:10]} 21. Bxc6 {[%emt 0:03:52]} Qxc6 {[%emt 0:00:09]} 22. Qxc6 {[%emt 0:02:59]} Rcd8 {[%emt 0:00:35]} 23. Qxe8+ Rxe8 {[%emt 0:00:30]} 24. Rd1 {[%emt 0:01:27]} Nc4 {[%emt 0:08:25]} 25. Kg3 {[%emt 0:23:34]} Re1 {[%emt 0:03:20]} 1-0

[Event "4NCL 2021-22"]
[Site "England"]
[Date "2022.02.13"]
[Round "4.44"]
[White "Horton, Jamie A"]
[Black "Stoica, Savas Marin"]
[Result "0-1"]
[ECO "E07"]
[WhiteElo "2275"]
[BlackElo "2129"]
[Annotator "ChessBase"]
[PlyCount "54"]
[EventDate "2021.11.27"]
[EventType "team-tourn"]
[EventCountry "ENG"]
[SourceTitle "playchess.com"]
[Source "ChessBase"]
[SourceQuality "1"]
[TimeControl "40/6000+30:3000+30"]

1. d4 {[%emt 0:06:33]} d5 {[%emt 0:00:31]} 2. c4 {[%emt 0:00:44]} e6 {[%emt 0:00:04]} 3. Nc3 {[%emt 0:00:55]} c6 {[%emt 0:00:03]} 4. g3 {[%emt 0:02:37]} Nf6 {[%emt 0:03:47]} 5. Bg2 {[%emt 0:01:43]} Be7 {[%emt 0:00:54]} 6. Nf3 {[%emt 0:00:46]} O-O {[%emt 0:00:07]} 7. O-O {[%emt 0:01:44]} Nbd7 {[%emt 0:00:20]} 8. Qc2 {[%emt 0:14:43]} dxc4 {[%emt 0:18:33]} 9. e4 {[%emt 0:17:18]} b5 {[%emt 0:00:18]} 10. Bg5 {[%emt 0:13:42]} h6 {[%emt 0:23:45]} 11. Bf4 {[%emt 0:03:58]} b4 {[%emt 0:07:24]} 12. Nd1 {[%emt 0:14:13]} Ba6 {[%emt 0:06:50]} 13. Re1 {[%emt 0:04:42]} c5 {[%emt 0:01:38]} 14. Ne3 {[%emt 0:19:43]} cxd4 {[%emt 0:09:09]} 15. Nxd4 {[%emt 0:00:41]} Nb6 {[%emt 0:17:55]} 16. Rad1 {[%emt 0:02:14]} Qe8 {[%emt 0:00:05]} 17. e5 {[%emt 0:01:18]} Nfd5 {[%emt 0:00:19]} 18. Nxd5 {[%emt 0:00:15]} Nxd5 {[%emt 0:00:26]} 19. Bxd5 {[%emt 0:00:52]} exd5 {[%emt 0:00:07]} 20. e6 {[%emt 0:00:24]} Bc8 {[%emt 0:05:34]} 21. exf7+ {[%emt 0:01:10]} Qxf7 {[%emt 0:00:08]} 22. Rd2 {[%emt 0:00:42]} Bd7 {[%emt 0:02:55]} 23. Rde2 {[%emt 0:00:30]} Bf6 {[%emt 0:01:40]} 24. Be5 {[%emt 0:02:33]} Rae8 {[%emt 0:02:02]} 25. f4 {[%emt 0:00:00]} g5 {[%emt 0:01:57]} 26. fxg5 {[%emt 0:00:00]} Bxe5 {[%emt 0:00:25]} 27. Rxe5 {[%emt 0:00:00]} Rxe5 {[%emt 0:00:11]} 0-1

[Event "4NCL 2021-22"]
[Site "England"]
[Date "2022.02.13"]
[Round "4.45"]
[White "Ethelontis, Alexandros N"]
[Black "Fitzsimons, David"]
[Result "0-1"]
[ECO "A29"]
[WhiteElo "2131"]
[BlackElo "2369"]
[Annotator "NA"]
[PlyCount "74"]
[EventDate "2021.11.27"]
[EventType "team-tourn"]
[EventCountry "ENG"]
[SourceTitle "playchess.com"]
[Source "ChessBase"]
[SourceQuality "1"]
[TimeControl "40/6000+30:3000+30"]

1. c4 {[%emt 0:00:30]} e5 {[%emt 0:04:16]} 2. g3 {[%emt 0:00:20]} d5 {[%emt 0:00:12]} 3. cxd5 {[%emt 0:00:12]} Qxd5 {[%emt 0:00:08]} 4. Nf3 {[%emt 0:00:10]} Nc6 {[%emt 0:00:09]} 5. Nc3 {[%emt 0:03:49]} Qd8 {[%emt 0:00:10]} 6. Bg2 {[%emt 0:05:07]} Nf6 {[%emt 0:00:12]} 7. O-O {[%emt 0:03:59]} h6 {[%emt 0:00:22]} 8. a3 {[%emt 0:03:58]} a5 {[%emt 0:01:06]} 9. Rb1 {[%emt 0:01:17]} Bf5 {[%emt 0:04:56]} 10. d3 {[%emt 0:01:14]} Bd6 {[%emt 0:01:28]} 11. Bd2 {[%emt 0:19:36]} O-O {[%emt 0:06:29]} 12. b4 {[%emt 0:01:57]} axb4 {[%emt 0:00:51]} 13. axb4 {[%emt 0:00:23]} Re8 {[%emt 0:01:58]} 14. Nh4 {[%emt 0:13:16]} Bc8 {[%emt 0:02:40]} 15. Ne4 {[%emt 0:14:42]} Be7 {[%emt 0:13:28]} 16. b5 {[%emt 0:11:55]} Nd4 {[%emt 0:03:55]} 17. e3 {[%emt 0:02:34]} Nf5 {[%emt 0:04:54]} 18. Nxf5 {[%emt 0:04:31]} Bxf5 {[%emt 0:00:06]} 19. Nxf6+ {[%emt 0:03:37]} Bxf6 {[%emt 0:00:17]} 20. Bxb7 {[%emt 0:03:26]} Ra3 {[%emt 0:11:02]} 21. Rb3 {[%emt 0:01:49]} Rxb3 {[%emt 0:05:01]} 22. Qxb3 {[%emt 0:00:08]} Bxd3 {[%emt 0:00:23]} 23. Bd5 {[%emt 0:05:09]} Bxf1 {[%emt 0:02:10]} 24. Bxf7+ {[%emt 0:00:17]} Kh8 {[%emt 0:00:25]} 25. Bxe8 {[%emt 0:02:30]} Bh3 {[%emt 0:00:42]} 26. Bg6 {[%emt 0:05:00]} Qxd2 {[%emt 0:00:11]} 27. Qb1 {[%emt 0:00:22]} Bg4 {[%emt 0:02:36]} 28. Kg2 {[%emt 0:00:32]} Qd1 {[%emt 0:00:47]} 29. Qe4 {[%emt 0:00:58]} Be2 {[%emt 0:00:28]} 30. Qa8+ {[%emt 0:00:53]} Bd8 {[%emt 0:00:06]} 31. h4 {[%emt 0:01:15]} Qf1+ {[%emt 0:00:29]} 32. Kh2 {[%emt 0:00:07]} Qxf2+ {[%emt 0:00:05]} 33. Kh3 {[%emt 0:00:49]} Bf1+ {[%emt 0:00:07]} 34. Kg4 {[%emt 0:00:10]} Qe2+ {[%emt 0:00:19]} 35. Kf5 {[%emt 0:00:45]} Bh3+ {[%emt 0:01:05]} 36. Kxe5 {[%emt 0:00:21]} Qb2+ {[%emt 0:00:40]} 37. Kf4 {[%emt 0:00:49]} Qf6+ {[%emt 0:00:09]} 0-1

[Event "4NCL 2021-22"]
[Site "England"]
[Date "2022.02.13"]
[Round "4.46"]
[White "Yao, Lan"]
[Black "Pollack, Oscar"]
[Result "1-0"]
[ECO "C17"]
[WhiteElo "2297"]
[BlackElo "2140"]
[Annotator "NA"]
[PlyCount "59"]
[EventDate "2021.11.27"]
[EventType "team-tourn"]
[EventCountry "ENG"]
[SourceTitle "playchess.com"]
[Source "ChessBase"]
[SourceQuality "1"]
[TimeControl "40/6000+30:3000+30"]

1. e4 {[%emt 0:00:05]} e6 {[%emt 0:00:21]} 2. d4 {[%emt 0:00:05]} d5 {[%emt 0:00:03]} 3. Nc3 {[%emt 0:00:05]} Bb4 {[%emt 0:00:03]} 4. e5 {[%emt 0:00:04]} c5 {[%emt 0:00:03]} 5. Bd2 {[%emt 0:00:02]} Nh6 {[%emt 0:00:25]} 6. Nb5 {[%emt 0:15:37]} Bxd2+ {[%emt 0:00:09]} 7. Qxd2 {[%emt 0:00:02]} O-O {[%emt 0:00:19]} 8. f4 {[%emt 0:07:06]} a6 {[%emt 0:04:02]} 9. Nd6 {[%emt 0:00:13]} cxd4 {[%emt 0:00:07]} 10. Nf3 {[%emt 0:00:20]} f6 {[%emt 0:03:59]} 11. Bd3 {[%emt 0:03:03]} Nc6 {[%emt 0:07:14]} 12. O-O {[%emt 0:07:37]} fxe5 {[%emt 0:07:33]} 13. fxe5 {[%emt 0:00:15]} Nxe5 {[%emt 0:20:20]} 14. Nxe5 {[%emt 0:00:47]} Rxf1+ {[%emt 0:02:04]} 15. Rxf1 {[%emt 0:00:03]} Qxd6 {[%emt 0:00:05]} 16. Qg5 {[%emt 0:01:36]} Nf5 {[%emt 0:05:53]} 17. Qh5 {[%emt 0:02:32]} Bd7 {[%emt 0:11:49]} 18. Bxf5 {[%emt 0:04:31]} exf5 {[%emt 0:00:07]} 19. Qf7+ {[%emt 0:00:02]} Kh8 {[%emt 0:00:08]} 20. Nxd7 {[%emt 0:00:04]} Rd8 {[%emt 0:05:20]} 21. Rxf5 {[%emt 0:00:13]} h6 {[%emt 0:00:05]} 22. Ne5 {[%emt 0:02:07]} Qb4 {[%emt 0:00:54]} 23. h3 {[%emt 0:03:07]} Qxb2 {[%emt 0:00:53]} 24. Ng6+ {[%emt 0:01:24]} Kh7 {[%emt 0:00:13]} 25. Nf8+ {[%emt 0:00:37]} Rxf8 {[%emt 0:01:09]} 26. Qxf8 {[%emt 0:00:02]} Qxc2 {[%emt 0:00:49]} 27. Rf2 {[%emt 0:01:01]} Qc1+ {[%emt 0:00:30]} 28. Kh2 {[%emt 0:00:11]} Qe3 {[%emt 0:01:24]} 29. Qf5+ {[%emt 0:00:15]} Kg8 {[%emt 0:00:21]} 30. Rc2 {[%emt 0:00:29]} 1-0

[Event "4NCL 2021-22"]
[Site "England"]
[Date "2022.02.13"]
[Round "4.47"]
[White "Eden, Tomer"]
[Black "Royal, Shreyas"]
[Result "0-1"]
[ECO "C47"]
[WhiteElo "2135"]
[BlackElo "2272"]
[Annotator "ChessBase"]
[PlyCount "48"]
[EventDate "2021.11.27"]
[EventType "team-tourn"]
[EventCountry "ENG"]
[SourceTitle "playchess.com"]
[Source "ChessBase"]
[SourceQuality "1"]
[TimeControl "40/6000+30:3000+30"]

1. e4 {[%emt 0:00:11]} e5 {[%emt 0:00:04]} 2. Nf3 {[%emt 0:00:09]} Nc6 {[%emt 0:00:05]} 3. d4 {[%emt 0:00:07]} exd4 {[%emt 0:00:10]} 4. Nxd4 {[%emt 0:00:07]} Nf6 {[%emt 0:00:05]} 5. Nc3 {[%emt 0:02:25]} Bb4 {[%emt 0:00:20]} 6. Nxc6 {[%emt 0:00:46]} bxc6 {[%emt 0:00:05]} 7. Bd3 {[%emt 0:00:46]} d5 {[%emt 0:00:54]} 8. exd5 {[%emt 0:00:12]} cxd5 {[%emt 0:00:05]} 9. O-O {[%emt 0:00:52]} O-O {[%emt 0:00:17]} 10. Qf3 {[%emt 0:04:48]} Bg4 {[%emt 0:07:01]} 11. Qg3 {[%emt 0:03:56]} Qd7 {[%emt 0:14:30]} 12. h3 {[%emt 0:04:41]} Bh5 {[%emt 0:34:37]} 13. Qh4 {[%emt 0:33:03]} Be7 {[%emt 0:04:15]} 14. Bg5 {[%emt 0:15:33]} Bg6 {[%emt 0:00:39]} 15. Bxg6 {[%emt 0:11:53]} fxg6 {[%emt 0:00:41]} 16. Rad1 {[%emt 0:01:34]} c6 {[%emt 0:01:58]} 17. Qa4 {[%emt 0:03:52]} Qb7 {[%emt 0:02:52]} 18. Rd3 {[%emt 0:11:27]} h6 {[%emt 0:03:40]} 19. Be3 {[%emt 0:03:44]} Kh7 {[%emt 0:00:41]} 20. Bd4 {[%emt 0:00:44]} Nd7 {[%emt 0:02:16]} 21. Re1 {[%emt 0:03:49]} Nc5 {[%emt 0:02:30]} 22. Qa3 {[%emt 0:01:25]} Ne6 {[%emt 0:03:39]} 23. Qb3 {[%emt 0:01:49]} Qd7 {[%emt 0:00:13]} 24. Na4 {[%emt 0:03:35]} Rab8 {[%emt 0:00:30]} 0-1

[Event "4NCL 2021-22"]
[Site "England"]
[Date "2022.02.13"]
[Round "4.48"]
[White "O'Donnell, Conor"]
[Black "Willmoth, Robert F"]
[Result "1-0"]
[ECO "B09"]
[WhiteElo "2281"]
[BlackElo "2121"]
[Annotator "ChessBase"]
[PlyCount "59"]
[EventDate "2021.11.27"]
[EventType "team-tourn"]
[EventCountry "ENG"]
[SourceTitle "playchess.com"]
[Source "ChessBase"]
[SourceQuality "1"]
[TimeControl "40/6000+30:3000+30"]

1. e4 {[%emt 0:00:04]} d6 {[%emt 0:02:59]} 2. d4 {[%emt 0:00:16]} Nf6 {[%emt 0:00:18]} 3. Nc3 {[%emt 0:00:17]} g6 {[%emt 0:00:07]} 4. f4 {[%emt 0:00:28]} Bg7 {[%emt 0:00:51]} 5. Nf3 {[%emt 0:00:20]} c5 {[%emt 0:00:25]} 6. Bb5+ {[%emt 0:04:10]} Bd7 {[%emt 0:01:31]} 7. e5 {[%emt 0:00:09]} Ng4 {[%emt 0:01:39]} 8. Bxd7+ {[%emt 0:01:32]} Qxd7 {[%emt 0:00:53]} 9. d5 {[%emt 0:00:40]} dxe5 {[%emt 0:02:57]} 10. h3 {[%emt 0:00:33]} e4 {[%emt 0:01:03]} 11. Nxe4 {[%emt 0:00:22]} Nf6 {[%emt 0:00:13]} 12. Nxf6+ {[%emt 0:00:33]} Bxf6 {[%emt 0:00:30]} 13. O-O {[%emt 0:00:57]} O-O {[%emt 0:00:45]} 14. Be3 {[%emt 0:01:02]} Na6 {[%emt 0:04:54]} 15. Ne5 {[%emt 0:14:04]} Qc7 {[%emt 0:22:00]} 16. Qf3 {[%emt 0:01:35]} Nb4 {[%emt 0:03:30]} 17. Qe4 {[%emt 0:11:41]} Qd6 {[%emt 0:10:20]} 18. Rad1 {[%emt 0:05:50]} Bg7 {[%emt 0:07:28]} 19. Nc4 {[%emt 0:06:31]} Qc7 {[%emt 0:02:56]} 20. c3 {[%emt 0:03:50]} Na6 {[%emt 0:02:10]} 21. f5 {[%emt 0:01:12]} Rad8 {[%emt 0:06:38]} 22. Bf4 {[%emt 0:10:03]} Qd7 {[%emt 0:01:33]} 23. d6 {[%emt 0:06:23]} Rfe8 {[%emt 0:12:50]} 24. fxg6 {[%emt 0:06:06]} exd6 {[%emt 0:06:21]} 25. gxh7+ {[%emt 0:01:30]} Kh8 {[%emt 0:01:08]} 26. Qd5 {[%emt 0:00:54]} Re6 {[%emt 0:06:40]} 27. Nxd6 {[%emt 0:02:01]} Rf8 {[%emt 0:06:47]} 28. Qh5 {[%emt 0:06:40]} Rg6 {[%emt 0:01:29]} 29. Be5 {[%emt 0:03:00]} Qe7 {[%emt 0:02:13]} 30. Nxf7+ {[%emt 0:03:34]} 1-0